Cogmind - Beta 12 @@@ ROGUE MODE // 2023.12.28 @ 19:23:44 Player: Ischenous Result: Destroyed by G-47 Trooper with Particle Gun Performance ------------- Evolutions (2) 1000 Regions Visited (4) 800 Robots Destroyed (12) 60 Value Destroyed (774) 774 Prototype IDs (1) 20 Alien Tech Used (0) 0 Bonus (200) 200 TOTAL SCORE: 2854 Bonus ------- Entered Garrisons 200 Cogmind --------- Core Integrity 0/550 Matter 300/300 Energy 100/100 System Corruption 0% Temperature Cool (18) Movement Core (200) Ox3 Location -8/Garrison Parts ------- > --- POWER (2) -------- (None) > --- PROPULSION (2) --- (None) > --- UTILITY (5) ------ Improved Heat Sink Medium Storage Unit Improved Terrain Scan Processor Improved Targeting Computer > --- WEAPON (2) ------- (None) > --- INVENTORY (10) --- Ion Engine Small Storage Unit Relay Coupler [Grunt] (26) EM Pulse Gun EM Pulse Gun Small Laser Assault Rifle Plasma Cutter Peak State ------------ > --- POWER ------------ Ion Engine Light Nuclear Core > --- PROPULSION ------- Wheel Armored Wheel > --- UTILITY ---------- Heat Sink Improved Heat Sink Medium Storage Unit Improved Terrain Scan Processor Improved Targeting Computer > --- WEAPON ----------- Advanced Beam Rifle > --- INVENTORY -------- Ion Engine Small Storage Unit EM Pulse Gun EM Pulse Gun Small Laser Beam Cannon Assault Rifle Heavy Assault Rifle Plasma Cutter [Rating: 22] Favorites ----------- Power Ion Engine Engine Ion Engine Power Core Light Nuclear Core Propulsion Wheel Wheel Wheel Utility Sensor Array Device Sensor Array Storage Medium Storage Unit Processor Improved Targeting Computer Weapon Assault Rifle Energy Gun Advanced Beam Rifle Energy Cannon Beam Cannon Ballistic Gun Assault Rifle Build | -11 -10 -9 -8 -8 ------- Run | Jun Mat Mat Mat Gar Slots Evolved 4 | . . 2 2 . Power 1 | . . . 1 . Propulsion . | . . . . . Utility 3 | . . 2 1 . Weapon . | . . . . . Parts Attached 17 | 3 3 2 5 4 Power 2 | 1 . . . 1 Engine 1 | 1 . . . . Core 1 | . . . . 1 Reactor . | . . . . . Propulsion 2 | 1 . . 1 . Treads . | . . . . . Leg . | . . . . . Wheel 2 | 1 . . 1 . Hover . | . . . . . Flight . | . . . . . Utility 7 | 1 1 2 2 1 Device 3 | . 1 . 1 1 Storage 2 | 1 . 1 . . Processor 2 | . . 1 1 . Hackware . | . . . . . Protection . | . . . . . Artifact . | . . . . . Weapon 6 | . 2 . 2 2 Energy Gun 1 | . . . 1 . Energy Cannon 2 | . 1 . . 1 Ballistic Gun 3 | . 1 . 1 1 Ballistic Cannon . | . . . . . Launcher . | . . . . . Special Weapon . | . . . . . Impact Weapon . | . . . . . Slashing Weapon . | . . . . . Piercing Weapon . | . . . . . Special Melee Weapon . | . . . . . Unidentified Prototypes 1 | . . . 1 . Parts Lost 10 | . . . . 10 Power 2 | . . . . 2 Propulsion 2 | . . . . 2 Utility 2 | . . . . 2 Weapon 4 | . . . . 4 Highest Loss Streak 7 | . . . . 7 To Critical Strikes . | . . . . . Average Slot Usage (%) 74 | . 78 68 68 81 Engine 10 | . 14 11 9 7 Core 1 | . . . . 5 Wheel 12 | . 14 11 11 12 Device 11 | . 8 11 9 15 Storage 10 | . 14 11 9 9 Processor 8 | . . 2 11 18 Energy Gun 2 | . . . 2 7 Energy Cannon 7 | . 13 11 6 . Ballistic Gun 9 | . 13 11 9 4 Naked Turns . | . . . . . Heaviest Build 24 | 10 16 21 21 24 Greatest Support 22 | 10 10 10 22 22 Greatest Overweight (x) 3 | . 1 2 2 3 Average Overweight (x) 1 | . . 1 1 . Largest Inventory Capacity 10 | 8 8 10 10 10 Average Capacity 9 | 6 8 9 10 10 Most Carried 10 | 5 6 10 10 10 Average Carried 7 | 3 4 8 9 9 Final Capacity 10 | 8 8 10 10 10 Final Carried 9 | 5 6 9 9 8 Class Distribution -------------------- 100% | Mutant Dominant Class ---------------- Mutant | -10/Materials Mutant | -9/Materials Mutant | -8/Materials Mutant | -8/Garrison Resources | -11 -10 -9 -8 -8 ----------- Run | Jun Mat Mat Mat Gar Matter Collected 455 | 190 46 . 150 69 Remotely . | . . . . . Salvage Created 445 | . 63 49 115 218 Parts 30 | . 7 7 8 8 Haulers Intercepted . | . . . . . Recyclers Shooed . | . . . . . Parts Field Recycled . | . . . . . Retrieved Matter . | . . . . . Parts Self-Destructed . | . . . . . Prevented . | . . . . . Kills | -11 -10 -9 -8 -8 ------- Run | Jun Mat Mat Mat Gar Combat Hostiles Destroyed 10 | . 3 1 2 4 Guns 8 | . 2 . 2 4 Cannons 2 | . 1 1 . . Classes Destroyed 4 | . 2 1 1 . Watcher 2 | . 1 1 . . Swarmer 3 | . 3 . . . Grunt 5 | . . 1 . 4 Sentry 2 | . . . 2 . Best Kill Streak 3 | . 3 2 2 1 Combat Bots Only 2 | . 2 1 2 1 Max Kills in Single Turn 2 | . 1 2 1 1 Gunslinging . | . . . . . Exploded . | . . . . . Melee . | . . . . . Uniques/NPCs Destroyed . | . . . . . Combat | -11 -10 -9 -8 -8 -------- Run | Jun Mat Mat Mat Gar Damage Taken 1451 | . 116 65 85 1185 Core 620 | . 40 21 16 543 Absorbed by Shields . | . . . . . Core Remaining (%) 92 | 100 84 94 . . Volleys Fired 54 | . 14 4 4 32 Largest 2 | . 2 2 2 2 Hottest 83 | . 80 80 81 83 Shots Fired 85 | . 28 8 8 41 Gun 62 | . 14 4 8 36 Cannon 23 | . 14 4 . 5 Launcher . | . . . . . Special . | . . . . . Kinetic 41 | . 14 4 4 19 Thermal 44 | . 14 4 4 22 Explosive . | . . . . . Electromagnetic . | . . . . . Robot Hit Streak 11 | . 1 2 9 11 Robot Miss Streak 6 | . 6 3 . 3 Penetration Max . | . . . . . Secondary Targets . | . . . . . Shots Hit Robots 47 | . 8 3 7 29 Core Hits 20 | . 4 3 3 10 Critical Kills . | . . . . . Critical Parts Destroyed 2 | . . . . 2 Critical Strikes 3 | . . . . 3 Burn 1 | . . . . 1 Destroy 2 | . . . . 2 Melee Attacks . | . . . . . Impact . | . . . . . Slashing . | . . . . . Piercing . | . . . . . Sneak Attacks . | . . . . . Combat Hostiles . | . . . . . Follow-up Attacks . | . . . . . Damage Inflicted 771 | . 123 56 110 482 Guns 648 | . 52 39 110 447 Cannons 123 | . 71 17 . 35 Explosions . | . . . . . Melee . | . . . . . Ramming . | . . . . . Kinetic 368 | . 52 39 30 247 Thermal 403 | . 71 17 80 235 Explosive . | . . . . . Electromagnetic . | . . . . . Impact . | . . . . . Slashing . | . . . . . Piercing . | . . . . . Highest Corruption . | . . . . . Average Corruption . | . . . . . Corruption Purged . | . . . . . Corruption Blocked . | . . . . . Overload Shots . | . . . . . Overflow Damage 39 | . . . . 39 Projectiles . | . . . . . Explosions 39 | . . . . 39 Melee . | . . . . . Knockbacks . | . . . . . Impact . | . . . . . Kinetic . | . . . . . Secondary . | . . . . . Self-Inflicted Damage 154 | . . . . 154 Shots 1 | . . . . 1 Rammed . | . . . . . Targets Rammed . | . . . . . Kicked . | . . . . . Crushed . | . . . . . Highest Temperature 232 | . 232 60 18 18 Average Temperature 73 | . 113 34 6 5 Received Heat Transfer 630 | . . 36 45 549 Siege Activations . | . . . . . Robots Corrupted . | . . . . . Combat Hostiles . | . . . . . Parts Fried . | . . . . . Impact Corruptions . | . . . . . Robots Melted . | . . . . . Combat Hostiles . | . . . . . Parts Melted 2 | . . . 1 1 Heat Transferred 756 | . 148 37 148 423 Parts Sabotaged . | . . . . . Parts Stolen . | . . . . . Parts Stripped . | . . . . . Power Chain Reactions . | . . . . . Missiles Intercepted . | . . . . . Alert | -11 -10 -9 -8 -8 ------- Run | Jun Mat Mat Mat Gar Peak Influence 323 | . 111 88 157 323 Initial 108 | . . 46 37 108 Average 93 | . 73 55 81 184 Maximum Alert Level 1 | . . . . 1 Low Security (%) 87 | 100 100 100 100 46 Level 1 12 | . . . . 53 Level 2 . | . . . . . Level 3 . | . . . . . Level 4 . | . . . . . Level 5 . | . . . . . High Security . | . . . . . Max Security . | . . . . . Squads Dispatched . | . . . . . Investigation . | . . . . . Extermination . | . . . . . Reinforcement . | . . . . . Assault . | . . . . . Garrison . | . . . . . Intercept . | . . . . . Searches Triggered . | . . . . . Construction Impeded . | . . . . . Haulers Reinforced . | . . . . . Active Scanning Responses . | . . . . . Cargo Convoy Interrupts . | . . . . . Stealth | -11 -10 -9 -8 -8 --------- Run | Jun Mat Mat Mat Gar Distress Signals 1 | . 1 . . . Communications Jammed . | . . . . . Distress Signals . | . . . . . Times Spotted 21 | . 6 2 3 10 Peak Tracking Total 6 | . 4 3 2 6 Tactical Retreats 4 | . . 1 1 2 Traps | -11 -10 -9 -8 -8 ------- Run | Jun Mat Mat Mat Gar Traps Triggered 4 | . . . . 4 Indirectly . | . . . . . Trap Hack Attempts . | . . . . . Triggered . | . . . . . Disarmed . | . . . . . Reprogrammed . | . . . . . Reused . | . . . . . Traps Extracted . | . . . . . Installed . | . . . . . Triggered . | . . . . . Machines | -11 -10 -9 -8 -8 ---------- Run | Jun Mat Mat Mat Gar Machines Disabled 3 | . . . . 3 Max in Single Turn 2 | . . . . 2 Garrison Relay 1 | . . . . 1 Phase Generator 1 | . . . . 1 Machines Repaired . | . . . . . Machines Sabotaged . | . . . . . Overloaded Fab Kills . | . . . . . Hacking | -11 -10 -9 -8 -8 --------- Run | Jun Mat Mat Mat Gar Machines Accessed 7 | . 3 2 2 . Terminals 5 | . 3 2 . . Fabricators . | . . . . . Repair Stations . | . . . . . Recycling Units 1 | . . . 1 . Scanalyzers . | . . . . . Garrison Access 1 | . . . 1 . Total Hacks 21 | . 7 4 10 . Successful 10 | . 3 3 4 . Failed 11 | . 4 1 6 . Catastrophic 1 | . . 1 . . Database Lockouts . | . . . . . Manual . | . . . . . Terminals 11 | . 7 4 . . Fabricators . | . . . . . Repair Stations . | . . . . . Recycling Units 5 | . . . 5 . Scanalyzers . | . . . . . Garrison Access 5 | . . . 5 . Terminal Hacks 6 | . 3 3 . . Alert Level 1 | . . 1 . . Locate Traps 2 | . 1 1 . . Dispatch Records 1 | . . 1 . . Maintenance Status 1 | . 1 . . . Transport Status 1 | . 1 . . . Fabricator Hacks . | . . . . . Repair Station Hacks . | . . . . . Recycling Unit Hacks 2 | . . . 2 . Report Inventory 1 | . . . 1 . Retrieve Components 1 | . . . 1 . Scanalyzer . | . . . . . Garrison Access Hacks 2 | . . . 2 . Unlock Access 1 | . . . 1 . Coupler Status 1 | . . . 1 . Unauthorized Hacks . | . . . . . Terminals . | . . . . . Fabricators . | . . . . . Repair Stations . | . . . . . Recycling Units . | . . . . . Scanalyzers . | . . . . . Garrison Access . | . . . . . Data Cores Recovered . | . . . . . Used . | . . . . . Hacking Detections 6 | . 2 2 2 . Full Trace Events . | . . . . . Feedback Events . | . . . . . Feedback Blocked . | . . . . . Robot Schematics Acquired . | . . . . . Robots Built . | . . . . . Authchips . | . . . . . Time . | . . . . . Total Robot Build Rating . | . . . . . Part Schematics Acquired . | . . . . . Parts Built . | . . . . . Authchips . | . . . . . Time . | . . . . . Total Part Build Rating . | . . . . . Parts Repaired . | . . . . . Time . | . . . . . Parts Recycled . | . . . . . Recycled Matter . | . . . . . Retrieved Matter . | . . . . . Retrieved Components 1 | . . . 1 . Parts Scanalyzed . | . . . . . Part Schematics Acquired . | . . . . . Parts Damaged . | . . . . . Bothacking | -11 -10 -9 -8 -8 ------------ Run | Jun Mat Mat Mat Gar Used RIF Installer . | . . . . . Robots Hacked . | . . . . . Non-combat . | . . . . . Combat . | . . . . . Robot Hacks Applied . | . . . . . Relay Couplers Released 3 | . . . . 3 Machine Destruction 3 | . . . . 3 Fabnet Peak Effective % . | . . . . . Robots Rewired . | . . . . . Allies Hacked . | . . . . . Hacks Repelled . | . . . . . Allies | -11 -10 -9 -8 -8 -------- Run | Jun Mat Mat Mat Gar Total Allies . | . . . . . Largest Group . | . . . . . Highest-Rated Group . | . . . . . Highest-Rated Ally . | . . . . . Total Orders . | . . . . . Ally Attacks . | . . . . . Total Damage . | . . . . . Kills . | . . . . . Allies Corrupted . | . . . . . Allies Melted . | . . . . . Intel | -11 -10 -9 -8 -8 ------- Run | Jun Mat Mat Mat Gar Robot Analysis Total . | . . . . . Derelict Logs Recovered . | . . . . . Drone Launches . | . . . . . Drone Recoveries . | . . . . . Exploration | -11 -10 -9 -8 -8 ------------- Run | Jun Mat Mat Mat Gar Turns Passed 1065 | 59 278 203 278 247 Spaces Moved 768 | 65 169 172 228 134 Core 12 | 11 . . . 1 Treads . | . . . . . Legs . | . . . . . Wheels 756 | 54 169 172 228 133 Hover . | . . . . . Flight . | . . . . . Fastest Speed 50 | 50 80 95 85 85 Average Speed 98 | 74 94 107 102 99 Slowest Speed 200 | 80 95 110 110 200 Overloaded Moves . | . . . . . Propulsion Burnouts . | . . . . . Robots Hopped . | . . . . . Cave-ins Triggered . | . . . . . Exploration Rate (%) 14 | 3 27 16 14 13 Regions Visited 4 Branch Regions . Pre-discovered Areas . | . . . . . Known Exits Taken 1 | . . . 1 . Unknown Exits Taken 3 | 1 1 1 . . Scrap Searched . | . . . . . Spaces Dug . | . . . . . Terrain Destroyed 74 | . . . . 74 Melee . | . . . . . Projectile . | . . . . . AOE 74 | . . . . 74 Terrain Rammed . | . . . . . Walls Destroyed . | . . . . . Machines Disabled . | . . . . . Actions | -11 -10 -9 -8 -8 --------- Run | Jun Mat Mat Mat Gar Total 988 | 75 260 182 265 206 Wait 96 | . 71 . 24 1 Move 764 | 64 168 171 227 134 Hop . | . . . . . Pick Up 23 | 8 4 4 4 3 Fast Attach . | . . . . . Attach 15 | 3 3 2 3 4 Detach 1 | . . 1 . . Swap 2 | . . . 2 . Drop 1 | . . . 1 . Fire 54 | . 14 4 4 32 Melee . | . . . . . Ram . | . . . . . Kick . | . . . . . Crush . | . . . . . Escape Stasis 32 | . . . . 32 Rewire . | . . . . . Trap . | . . . . . Miscellaneous . | . . . . . Route ------- -11/Junkyard -10/Materials -9/Materials -8/Materials -8/Garrison History --------- Turn | Location | Event 24 | -11/Junkyard | Discovered new exit (range 14) 60 | -11/Junkyard | Entered Materials 316 | -10/Materials | Discovered new exit (range 15) 318 | -10/Materials | Build established: Mutant 338 | -10/Materials | Entered another Materials area 338 | -9/Materials | Evolved 2 slots: Utility x2 529 | -9/Materials | Discovered new exit (range 9) 541 | -9/Materials | Entered another Materials area 541 | -8/Materials | Evolved 2 slots: Power x1, Utility x1 819 | -8/Materials | Identified exit to Garrison 819 | -8/Materials | Entered Garrison 872 | -8/Garrison | Triggered checkpoint 933 | -8/Garrison | Garrison Relay disabled 951 | -8/Garrison | Lost 3 parts (1n1u1w) 1020 | -8/Garrison | Phase Generator disabled 1047 | -8/Garrison | Core integrity fell below 50% 1057 | -8/Garrison | Core integrity fell below 20% 1066 | -8/Garrison | Destroyed by G-47 Trooper with Particle Gun Last Messages --------------- 01020_ Destroyed Ion Engine. 01020_ Adv. Beam Rifle destroyed. 01020_ Destroyed Adv. Beam Rifle. 01020_ Machine disabled. 01021_ The unstable cave ceiling collapses. 01035_ Critical hit (Burn: +37). 01038_ The unstable cave ceiling collapses. 01040_ Heat Sink destroyed. 01043_ Beam Cannon destroyed. 01044_ Y-45 Defender suffers critical hit (Destroy). 01044_ Destroyed Lgt. Treads. 01050_ Arm. Wheel destroyed. 01052_ Y-45 Defender destroyed. 01053_ Lgt. Nuclear Core destroyed. 01056_ G-47 Trooper destroyed. 01062_ Y-45 Defender suffers critical hit (Burn). 01062_ Y-45 Defender destroyed. 01063_ The unstable cave ceiling collapses. 01064_ Hvy. Assault Rifle destroyed. 01064_ Acquired 40 matter. Map ----- +----------------------------------------------------+ | ??????????????????????????????????????????????? | | ??????????????????????????????????????????????? | | ??????????????????????????????????????????????? | | ??????????????????????????????????????????????? | | ???????#######????????????????????????????????? | | ???????# #????????????????????????????????? | | ######## =###??????????????????????????????? | | = [%[#??????????????????????????????? | | !!###########%#??????????????????????????????? | | " ""#???#%???# #??????????????????????????????? | | #####???#????# #???#####??????????????????????? | | ?????????????# #???# #??????????????????????? | | ???????????### ##### #??????????????????????? | | ???????????# #??????????????????????? | | ???????????#^ ^ #??????????????????????? | | ???????????# ####### ##??????????????????????? | | ???????????# #?????# #???????##??????????????? | | ???????????# #?????# #??????? ##?????????????? | | ???????????# #?????# #?????? #?????????????? | | ???????????# #?##### #####?? #?????????????? | | ???????????# ### ## #?????????????? | | ???????????# ## # # # "?????????????? | | ???????????# # ??????????????? | | ???????????# # # #?????????????????? | | ???????????# # %!=# ##????????????????? | | ######## # =%[@# #????????????????? | | g [=[ #????????????????? | | # g ####????????????????? | | # ^ ########### g #????????????????? | | # ????????????# ##????????????????? | | ??????????????# #?????????????????? | | ??????????????## # ##?????????????????? | | ???????????????## # ###??????????????????? | | ????????????????### #####???????????????????? | | ??????????????????#####???????????????????????? | | ??????????????????????????????????????????????? | | ??????????????????????????????????????????????? | | ??????????????????????????????????????????????? | | ??????????????????????????????????????????????? | | ??????????????????????????????????????????????? | | ??????????????????????????????????????????????? | | ??????????????????????????????????????????????? | | ??????????????????????????????????????????????? | | ??????????????????????????????????????????????? | | ??????????????????????????????????????????????? | | ??????????????????????????????????????????????? | | ??????????????????????????????????????????????? | | ??????????????????????????????????????????????? | | ??????????????????????????????????????????????? | | ??????????????????????????????????????????????? | +----------------------------------------------------+ Best States ------------- Heat Dissipation 55 Energy Generation 19 Energy Capacity 310 Matter Stores 300 Matter Capacity 300 Sight Range 16 Robot Scan Range 14 Terrain Scan Density 110 Evasion (%) 50 Targeting Accuracy 6 Item Schematics ----------------- None Robot Schematics ------------------ None Fabricated ------------ Nothing Alien Tech Used ----------------- None Achievements -------------- None Challenges ------------ None Game ------ Seed IntegratedBoreFrame Manual? 0 Play Time 00:16:49 Cumulative 117.4 hours Start 2023.12.28 @ 18:37:00 End 2023.12.28 @ 19:23:44 Sessions 1 Manual Loads 0 Difficulty Rogue Special Mode None Game No. 109 Rogue 109 Adventurer 0 Explorer 0 Win Type - Total 0 Types 0/0/0/0/0/0/0/0/0 Lore% 35 Gallery% 41 Achievement% 30 Wizard Run 0 Options --------- ASCII 0 Keyboard 0 Movement Arrows Keybinds 0 Fullscreen 1 Font 18/SmallcapsGlow Map View 76x50 Tactical HUD 1 Map Filters NONE Filters NONE Steam 1 RUN: 7eec3aa7-bf99-4f0f-990f-854605e023e6